bitfinex-derivatives/quotes_SOLF0:USTF0_20241215
["timestamp","ask_amount","ask_price","bid_price","bid_amount"]
[1734298957583,9.90109024,218.2,217.93,13.76]
[1734298957783,2.3,218.19,218.05,1.5306]
[1734298957985,9.90109024,218.17,218.05,1.5306]
[1734298958184,2.2926,218.14,218.06,2.2934]
[1734298958482,2.3,218.13,218.07,5.50660164]
[1734298958687,2.293,218.11,218.02,2.2938]
[1734298958989,2.3,218.13,218.02,2.2938]
[1734298959689,2.2932,218.09,218.0,2.294]
[1734298959992,2.3,218.08,217.99,3.0819]
[1734298960589,2.3,218.08,218.02,5.57337532]
[1734298960987,2.3,218.08,217.99,3.0819]
[1734298961387,2.3,218.08,217.93,1.5306]
[1734298961388,12.20109024,218.08,217.93,1.5306]
[1734298962090,9.90109024,218.05,217.94,2.2947]
[1734298962285,9.90109024,218.02,217.92,3.0499]
[1734298962591,2.2941,218.0,217.92,3.0499]
[1734298963189,2.2941,218.0,217.92,5.3448]
[1734298963493,2.3,218.01,217.94,5.55165122]
[1734298964385,2.3,218.0,217.95,2.2945]
[1734298964585,2.3,218.0,217.94,5.55165122]
[1734298964586,2.3,217.99,217.94,5.55165122]
[1734298964786,2.3,218.0,217.94,5.55165122]
[1734298965688,2.3,218.0,217.95,2.2945]
[1734298965989,2.3,218.0,217.94,5.55165122]
[1734298967596,2.3,218.0,217.97,2.2943]
[1734298967984,2.3,218.0,217.94,5.55165122]
[1734298968991,2.3,218.0,217.94,7.84635122]
[1734298971095,2.3,218.0,217.94,5.55165122]
[1734298972282,2.2941,218.01,217.94,5.55165122]
[1734298972485,2.3,218.0,217.99,2.2942]
[1734298973396,2.3,218.0,217.97,2.2943]
[1734298974283,2.3,218.0,217.95,2.2945]
[1734298974484,2.3,218.0,217.94,5.55165122]
[1734298976086,2.3,218.0,217.94,7.84625122]
[1734298976292,2.3,218.0,217.94,5.55165122]
[1734298977293,4.5941,218.0,217.94,5.55165122]
[1734298977493,2.3,218.0,217.92,5.3448]
[1734298978391,2.2942,217.99,217.92,5.3448]
[1734298978692,2.2942,217.99,217.93,5.55698759]
[1734298980187,2.2942,217.99,217.93,7.85178759]
[1734298980988,2.3,218.01,217.93,5.55698759]
[1734298982799,2.2935,218.07,217.95,9.90109024]
[1734298983095,2.3,218.06,217.96,1.5226]
[1734298983297,2.3,218.06,218.0,2.2941]
[1734298984194,2.2933,218.08,218.0,2.2941]
[1734298984393,2.3,218.07,218.0,2.2941]
[1734298984994,4.5934,218.07,218.0,2.2941]
[1734298985193,0.7204,218.15,217.98,9.90109024]
[1734298985393,2.3,218.14,217.98,9.90109024]
[1734298985589,2.2927,218.13,218.04,2.2936]
[1734298985801,2.3,218.12,218.01,9.90109024]
[1734298985997,2.3,218.12,218.02,2.8886]
[1734298986500,2.3,218.12,218.06,2.2934]
[1734298986897,2.3,218.12,218.02,2.8886]
[1734298987098,12.20109024,218.12,218.02,2.8886]
[1734298987800,2.293,218.11,218.04,2.2936]
[1734298988899,2.3,218.12,218.05,2.2935]
[1734298989102,2.3,218.12,218.02,2.8886]
[1734298989600,2.3,218.12,218.05,2.2936]
[1734298990601,4.5928,218.12,218.05,2.2936]
[1734298991605,4.5928,218.12,218.06,2.2935]
[1734298992001,2.3,218.12,218.04,5.56459893]
[1734298993107,12.20109024,218.12,218.04,5.56459893]
[1734298994307,2.3,218.13,218.04,5.56459893]
[1734298994804,2.3,218.13,218.07,2.2933]
[1734298995102,2.3,218.14,218.05,1.4321]
[1734298995600,2.2923,218.17,218.05,1.4321]
[1734298995802,2.3,218.15,218.05,1.4321]
[1734298996002,2.2924,218.16,218.05,1.4321]
[1734298996204,2.3,218.15,218.05,1.4321]
[1734298997508,4.5925,218.15,218.08,2.2933]
[1734298998307,4.5925,218.15,218.05,1.4321]
[1734298998511,4.5925,218.15,218.09,2.2931]
[1734298999208,2.3,218.15,218.09,2.2931]
[1734299000514,2.2929,218.12,218.06,2.2934]
[1734299000713,9.90109024,218.13,218.04,5.56459893]
[1734299001007,12.19359024,218.16,218.09,2.2931]
[1734299001208,9.90109024,218.19,218.06,9.90109024]
[1734299001410,9.90109024,218.22,218.06,9.90109024]
[1734299001714,2.3,218.21,218.06,9.90109024]
[1734299002412,4.592,218.21,218.06,9.90109024]
[1734299002913,2.3,218.2,218.06,9.90109024]
[1734299003109,2.3,218.2,218.09,9.90109024]
[1734299003315,4.592,218.2,218.09,9.90109024]
[1734299003719,2.3,218.2,218.14,2.2926]
[1734299004121,2.3,218.2,218.09,9.90109024]
[1734299004122,2.3,218.2,218.17,2.2922]
[1734299005521,2.3,218.2,218.13,2.9358]
[1734299006316,9.90109024,218.19,218.05,1.4476]
[1734299006518,9.90109024,218.13,218.05,1.4476]
[1734299006721,2.3,218.12,218.05,1.4476]
[1734299007927,2.3,218.12,218.06,2.976]
[1734299009625,2.3,218.12,218.07,2.2933]
[1734299009925,2.3,218.12,218.06,2.976]
[1734299011228,2.3,218.12,218.09,2.2931]
[1734299013433,2.3,218.12,218.11,2.2929]
[1734299015532,2.3,218.12,218.06,2.976]
[1734299016026,2.3,218.12,218.04,5.56459893]
[1734299016226,2.2932,218.09,218.04,5.56459893]
[1734299017526,2.293,218.11,218.04,5.56459893]
[1734299018328,4.5731,218.1,218.04,7.85829893]
[1734299019625,2.28,218.1,218.04,15.46568917]
[1734299019825,2.28,218.1,218.05,2.8506]
[1734299020428,2.28,218.1,218.09,2.2932]
[1734299022426,2.2925,218.16,218.09,2.2932]
[1734299022628,9.90109024,218.19,218.07,9.90109024]
[1734299022825,2.28,218.18,218.07,9.90109024]
[1734299023127,9.90109024,218.22,218.07,9.90109024]
[1734299023128,2.28,218.17,218.07,9.90109024]
[1734299023329,2.28,218.16,218.07,9.90109024]
[1734299023925,2.28,218.16,218.13,2.2927]
[1734299024124,2.28,218.16,218.07,9.90109024]
[1734299024325,2.28,218.16,218.06,2.28]
[1734299024326,2.28,218.16,218.1,9.90109024]
[1734299024725,2.28,218.16,218.13,2.2926]
[1734299025430,2.28,218.18,218.1,9.90109024]
[1734299025625,9.90109024,218.25,218.1,9.90109024]
[1734299025924,2.28,218.24,218.1,9.90109024]
[1734299026133,9.90109024,218.25,218.13,9.90109024]
[1734299026329,2.28,218.24,218.13,9.90109024]
[1734299026527,2.28,218.23,218.13,9.90109024]
[1734299026922,2.28,218.23,218.18,2.2922]
[1734299027231,9.90109024,218.25,218.18,2.2922]
[1734299027530,2.28,218.24,218.14,1.52]
[1734299027727,2.2913,218.28,218.16,9.90109024]
[1734299027927,9.90109024,218.31,218.16,9.90109024]
[1734299028126,2.28,218.3,218.19,9.90109024]
[1734299028527,0.7182,218.33,218.19,9.90109024]
[1734299028730,2.28,218.29,218.19,9.90109024]
[1734299029431,2.28,218.29,218.23,2.2916]
[1734299030025,4.5711,218.29,218.21,2.2918]
[1734299030225,2.28,218.29,218.21,2.2918]
[1734299031425,2.2912,218.28,218.21,2.2918]
[1734299032026,2.28,218.27,218.21,2.2918]
[1734299033730,2.28,218.27,218.19,5.57211754]
[1734299033927,2.28,218.27,218.22,2.2918]
[1734299036337,2.2916,218.24,218.19,5.57211754]
[1734299036535,9.90109024,218.25,218.19,5.57211754]
[1734299037038,12.19259024,218.25,218.19,5.57211754]
[1734299038432,9.90109024,218.25,218.19,2.2921]
[1734299038634,2.2916,218.24,218.19,2.2921]
[1734299039236,9.90109024,218.25,218.15,1.4798]
[1734299039429,2.2918,218.22,218.15,1.4798]
[1734299039631,9.90109024,218.25,218.15,1.4798]
[1734299039632,2.28,218.21,218.15,1.4798]
[1734299040234,2.292,218.2,218.14,2.2925]
[1734299040438,2.28,218.21,218.13,5.51547898]
[1734299040937,2.2922,218.19,218.07,12.18109024]
[1734299041237,2.28,218.21,218.07,12.18109024]
[1734299041734,2.28,218.21,218.12,5.43402095]
[1734299042534,2.292,218.2,218.14,2.2926]
[1734299044240,2.2921,218.19,218.14,2.2926]
[1734299046739,9.90109024,218.18,218.06,2.971]
[1734299047636,9.90109024,218.18,218.11,2.2929]
[1734299048548,2.2925,218.16,218.11,2.2929]
[1734299048747,2.24,218.15,218.11,2.2929]
[1734299049349,2.24,218.15,218.09,5.62468002]
[1734299050147,2.24,218.15,218.14,2.2926]
[1734299050348,2.24,218.15,218.09,5.62468002]
[1734299051144,2.24,218.15,218.12,2.2928]
[1734299053048,2.24,218.15,218.06,2.971]
[1734299053351,12.14109024,218.15,218.07,5.46424328]
[1734299053542,12.14109024,218.15,217.99,1.5325]
[1734299053740,9.90109024,218.12,217.99,1.5325]
[1734299053945,2.2937,218.05,217.99,1.5325]
[1734299054143,2.24,218.05,217.99,1.5325]
[1734299054749,4.5337,218.05,217.99,1.5325]
[1734299055149,4.5337,218.05,218.0,5.62545402]
[1734299055351,2.24,218.05,218.0,5.62545402]
[1734299055854,2.24,218.08,218.06,2.2934]
[1734299056149,2.24,218.09,218.06,2.2934]
[1734299057349,2.24,218.09,218.04,2.2936]
[1734299058153,4.5332,218.09,218.04,2.2936]
[1734299058751,2.24,218.09,218.0,5.62545402]
[1734299058951,2.24,218.09,218.05,2.2935]
[1734299059659,2.24,218.09,218.04,2.2937]
[1734299060352,4.5332,218.09,218.04,2.2937]
[1734299062957,4.5332,218.09,218.05,5.59815567]
[1734299063753,2.24,218.09,217.99,1.5325]
[1734299063952,2.2937,218.04,217.99,3.8267]
[1734299064259,2.24,218.04,217.99,1.5325]
[1734299064460,2.24,218.04,217.97,2.2943]
[1734299065057,2.24,218.04,217.99,5.51114912]
[1734299065460,2.2939,218.02,217.99,5.51114912]
[1734299067356,2.24,218.04,217.99,5.51114912]
[1734299068561,9.90109024,218.1,217.99,5.51114912]
[1734299068862,9.90109024,218.13,217.99,5.51114912]
[1734299069060,2.293,218.11,218.0,1.5115]
[1734299069362,2.24,218.1,218.0,1.5115]
[1734299071464,12.14109024,218.1,218.0,1.5115]
[1734299072058,2.2935,218.07,218.01,2.2939]
[1734299072563,2.2933,218.08,218.01,2.2939]
[1734299072960,12.14109024,218.1,218.01,2.2939]
[1734299073258,12.14109024,218.1,218.0,1.5115]
[1734299073460,2.2936,218.05,218.0,1.5115]
[1734299073665,2.24,218.04,218.0,1.5115]
[1734299074058,4.5337,218.04,218.0,1.5115]
[1734299074259,4.5337,218.04,217.99,5.51114912]
[1734299074260,2.24,218.04,217.99,5.51114912]
[1734299075465,2.2938,218.03,217.99,5.51114912]
[1734299075667,2.24,218.04,217.94,1.467]
[1734299075860,12.14109024,218.04,217.94,1.467]
[1734299076264,12.14109024,218.04,217.96,5.62639485]
[1734299076460,12.14109024,218.04,217.96,2.2945]
[1734299076664,12.14109024,218.04,217.94,1.467]
[1734299076860,12.14109024,218.04,217.89,9.90109024]
[1734299077067,12.14109024,218.04,217.9,1.6111]
[1734299078471,2.294,218.01,217.95,2.2946]
[1734299078668,2.294,218.01,217.9,1.6111]
[1734299079071,2.294,218.01,217.94,2.2946]
[1734299079371,2.24,218.0,217.95,5.60270824]
[1734299079573,2.24,218.02,217.97,2.2944]
[1734299079871,2.24,218.02,217.95,5.60270824]
[1734299080666,2.24,218.02,217.97,2.2944]
[1734299082266,2.24,218.02,217.95,5.60270824]
[1734299082267,4.5339,218.02,217.96,2.2945]
[1734299083372,2.294,218.01,217.95,7.89720824]
[1734299084463,2.24,218.02,217.96,2.2945]
[1734299084464,4.5339,218.02,217.96,2.2945]
[1734299087173,9.90109024,218.04,217.99,2.2942]
[1734299087174,2.24,218.01,217.99,2.2942]
[1734299087875,2.24,218.01,217.95,5.60270824]
[1734299088087,2.24,218.01,217.96,1.5396]
[1734299088275,2.24,218.01,217.99,2.2942]
[1734299089179,2.24,218.01,217.97,2.2943]
[1734299090077,2.24,218.01,217.96,3.8341]
[1734299091974,2.24,218.01,217.96,2.2945]
[1734299092172,2.24,218.01,217.9,2.8886]
[1734299092483,9.90109024,218.0,217.9,2.8886]
[1734299092781,2.2942,217.99,217.93,2.2948]
[1734299093478,2.2943,217.98,217.93,2.2948]
[1734299093981,9.90109024,218.0,217.93,2.2948]
[1734299094179,2.2943,217.98,217.93,2.2948]
[1734299094374,2.2943,217.98,217.93,7.66934068]
[1734299095279,2.2942,217.99,217.93,7.66934068]
[1734299095876,9.90109024,218.0,217.93,5.37454068]
[1734299096177,2.2946,217.96,217.91,2.295]
[1734299096381,2.24,217.95,217.91,2.295]
[1734299097082,2.24,217.95,217.91,7.70786865]
[1734299097980,2.24,217.95,217.9,3.7421]
[1734299098377,2.24,217.95,217.9,1.447]
[1734299098581,4.5347,217.95,217.9,1.447]
[1734299098777,4.5347,217.95,217.89,2.2952]
[1734299099381,2.24,217.95,217.89,5.59348803]
[1734299099782,2.24,217.98,217.89,5.59348803]
[1734299100275,2.24,217.98,217.91,2.295]
[1734299100483,2.24,217.98,217.89,5.59348803]
[1734299100872,2.2945,217.96,217.91,2.295]
[1734299101073,9.90109024,217.97,217.89,5.59348803]
[1734299101280,2.24,217.98,217.89,5.59348803]
[1734299101483,12.19519024,218.0,217.95,2.2946]
[1734299101679,2.24,217.99,217.89,5.59348803]
[1734299101876,2.24,218.0,217.9,2.24]
[1734299102282,1.4306,218.1,217.92,9.90109024]
[1734299102487,12.14109024,218.09,217.95,9.90109024]
[1734299102786,1.4306,218.1,217.98,9.90109024]
[1734299102987,2.24,218.09,217.98,9.90109024]
[1734299103182,4.5332,218.09,217.96,2.9183]
[1734299103383,12.14109024,218.09,217.96,2.9183]
[1734299103687,2.24,218.08,217.96,2.9183]
[1734299104086,2.24,218.08,218.01,2.294]
[1734299104287,2.24,218.08,217.96,2.9183]
[1734299105382,2.2934,218.07,218.0,2.2941]
[1734299105583,2.24,218.06,218.0,5.44056664]
[1734299106184,9.90109024,218.12,218.0,5.44056664]
[1734299106491,2.24,218.11,218.0,7.68056664]
[1734299106686,2.24,218.11,218.06,2.2935]
[1734299107792,2.2928,218.13,218.0,7.68056664]
[1734299107793,9.90109024,218.15,218.01,9.90109024]
[1734299108083,9.90109024,218.15,218.02,1.489]
[1734299108288,2.24,218.14,218.02,1.489]
[1734299110987,2.2929,218.12,218.05,2.2936]
[1734299111186,9.90109024,218.15,218.14,167.4671]
[1734299111385,12.14109024,218.15,218.14,167.4671]
[1734299112388,14.43359024,218.15,218.14,167.4671]
[1734299112591,14.43359024,218.15,218.14,40.29409533]
[1734299113783,14.43359024,218.15,218.14,0.40084928]
[1734299114090,2.2935,218.06,218.0,5.44056664]
[1734299114393,2.24,218.05,218.0,5.44056664]
[1734299114593,2.24,218.05,218.02,2.2939]
[1734299116298,2.24,218.05,218.01,2.294]
[1734299116692,2.24,218.05,218.0,5.44056664]
[1734299117396,2.24,218.05,218.01,2.294]
[1734299117891,2.24,218.05,217.96,4.3394]
[1734299118493,2.24,218.05,217.96,2.9183]
[1734299118696,9.90109024,218.03,217.9,1.5563]
[1734299118997,2.2942,217.99,217.94,2.2946]
[1734299119193,2.24,217.98,217.9,4.557]
[1734299119795,2.24,217.98,217.94,2.2947]
[1734299119990,2.24,217.98,217.9,4.557]
[1734299120397,0.236,218.15,217.92,9.90109024]
[1734299120696,9.90109024,218.1,217.95,9.90109024]
[1734299120896,2.24,218.09,217.95,9.90109024]
[1734299121301,2.2936,218.05,218.0,2.2941]
[1734299121507,2.24,218.04,217.95,9.90109024]
[1734299122203,2.24,218.04,217.99,2.2941]
[1734299122501,2.24,218.04,217.95,9.90109024]
[1734299123000,2.24,218.04,218.0,2.294]
[1734299123595,2.24,218.04,217.95,9.90109024]
[1734299123795,2.24,218.04,218.01,2.294]
[1734299124801,2.24,218.04,217.99,2.2941]
[1734299126304,2.24,218.04,217.95,9.90109024]
[1734299126704,2.24,218.04,217.98,9.90109024]
[1734299127506,2.24,218.04,218.02,2.2939]
[1734299127909,2.24,218.04,218.0,2.294]
[1734299128104,2.24,218.04,217.99,3.0098]
[1734299129811,2.24,218.04,217.99,5.3039]
[1734299130310,2.24,218.04,218.0,2.2941]
[1734299130506,2.24,218.04,217.99,3.0098]
[1734299131406,2.24,218.04,218.01,2.294]
[1734299132510,2.24,218.04,218.02,2.2938]
[1734299133311,2.24,218.08,217.99,3.0098]
[1734299133507,9.90109024,218.13,218.0,6.91156121]
[1734299133710,2.24,218.12,218.0,6.91156121]
[1734299133902,2.2931,218.1,218.04,2.2936]
[1734299134302,2.24,218.09,218.0,6.91156121]
[1734299134509,2.24,218.11,218.01,9.90109024]
[1734299134705,2.24,218.12,218.04,9.90109024]
[1734299134908,2.24,218.13,218.04,9.90109024]
[1734299135114,2.24,218.13,218.09,2.2931]
[1734299136008,2.24,218.13,218.04,9.90109024]
[1734299136214,2.24,218.14,218.1,2.293]
[1734299137019,2.24,218.13,218.1,2.293]
[1734299138116,2.24,218.13,218.04,9.90109024]
[1734299138318,2.24,218.13,218.01,9.90109024]
[1734299138512,2.24,218.13,218.0,6.91156121]
[1734299138513,12.14109024,218.13,218.0,6.91156121]
[1734299138717,9.90109024,218.1,218.0,6.91156121]
[1734299139019,9.90109024,218.07,218.0,5.47776121]
[1734299139210,2.24,218.06,218.0,5.47776121]
[1734299140112,2.24,218.06,217.99,3.0098]
[1734299140509,2.2936,218.05,218.0,2.294]
[1734299140714,2.24,218.06,217.99,3.0098]
[1734299141216,2.2938,218.04,217.93,1.4566]
[1734299141510,2.2938,218.04,217.94,2.9735]
[1734299141715,2.2938,218.04,217.97,2.2944]
[1734299142910,9.90109024,218.04,217.94,2.9735]
[1734299143815,2.24,218.03,217.94,2.9735]
[1734299144215,2.2941,218.0,217.94,5.2682]
[1734299144411,9.90109024,218.01,217.89,5.59348803]
[1734299145722,2.2943,217.98,217.93,2.2948]
[1734299145921,2.24,217.97,217.89,15.49457827]
[1734299146120,2.24,217.97,217.9,1.5378]
[1734299147222,2.24,217.97,217.89,5.59348803]
[1734299150225,9.90109024,217.95,217.86,2.2955]
[1734299150518,9.90109024,217.92,217.81,1.5378]
[1734299150721,9.90109024,217.89,217.76,3.0233]
[1734299150922,2.24,217.88,217.76,3.0233]
[1734299151117,9.90109024,217.86,217.76,3.0233]
[1734299151524,9.90109024,217.86,217.75,2.2967]
[1734299151525,9.90109024,217.83,217.69,1.4787]
[1734299151724,2.2964,217.78,217.72,2.297]
[1734299151920,2.24,217.77,217.7,3.0553]
[1734299152317,2.2969,217.74,217.66,2.2977]
[1734299152519,9.90109024,217.74,217.6,9.90109024]
[1734299153122,9.90109024,217.74,217.58,4.5547]
[1734299153434,9.90109024,217.71,217.58,4.5547]
[1734299153625,2.24,217.7,217.58,4.5547]
[1734299154024,0.2373,217.79,217.61,5.55408204]
[1734299154222,9.90109024,217.75,217.63,9.90109024]
[1734299154422,9.90109024,217.75,217.61,7.79408204]
[1734299154626,9.90109024,217.75,217.61,5.55408204]
[1734299154829,9.90109024,217.72,217.61,5.55408204]
[1734299155130,2.2973,217.7,217.62,2.298]
[1734299155326,9.90109024,217.69,217.58,4.5547]
[1734299156225,9.90109024,217.69,217.6,5.50167463]
[1734299156627,2.2975,217.68,217.6,7.79997463]
[1734299156924,9.90109024,217.69,217.6,5.50167463]
[1734299157333,2.2975,217.68,217.61,2.2982]
[1734299157629,2.2975,217.68,217.6,5.50167463]
[1734299158222,9.90109024,217.66,217.58,2.9957]
[1734299158431,9.90109024,217.66,217.58,2.2984]
[1734299158432,4.5378,217.65,217.58,2.2984]
[1734299159125,2.24,217.65,217.52,3.0272]
[1734299159830,4.5378,217.65,217.52,3.0272]
[1734299160028,4.5378,217.65,217.57,5.60837502]
[1734299160427,2.24,217.65,217.57,5.60837502]
[1734299160729,9.90109024,217.6,217.52,3.0272]
[1734299160923,2.24,217.59,217.52,3.0272]
[1734299161530,2.24,217.59,217.52,8.56766057]
[1734299161726,9.90109024,217.66,217.52,8.56766057]
[1734299161926,2.24,217.65,217.59,2.2984]
[1734299162326,2.24,217.65,217.52,8.56766057]
[1734299162327,2.24,217.65,217.54,9.90109024]
[1734299162532,9.90109024,217.72,217.57,9.90109024]
[1734299162733,2.24,217.71,217.57,9.90109024]
[1734299163236,12.19849024,217.69,217.6,2.2982]
[1734299163535,9.90109024,217.66,217.54,9.90109024]
[1734299163733,2.24,217.65,217.54,9.90109024]
[1734299163929,2.24,217.65,217.57,2.2986]
[1734299164136,2.24,217.65,217.54,9.90109024]
[1734299164632,2.24,217.65,217.57,9.90109024]
[1734299165031,2.24,217.65,217.54,9.90109024]
[1734299166238,2.24,217.65,217.57,2.2986]
[1734299166436,2.24,217.65,217.54,9.90109024]
[1734299167431,2.24,217.65,217.57,9.90109024]
[1734299167633,9.90109024,217.72,217.58,2.24]
[1734299167835,2.24,217.71,217.58,2.24]
[1734299168037,2.24,217.71,217.59,1.4894]
[1734299169544,2.24,217.71,217.64,2.2978]
[1734299169842,9.90109024,217.69,217.59,1.4894]
[1734299170031,2.24,217.71,217.55,0.84480826]
[1734299170032,2.2979,217.64,217.55,0.84480826]
[1734299170338,12.14109024,217.63,217.55,0.84480826]
[1734299170639,2.24,217.62,217.55,0.84480826]
[1734299171237,2.2984,217.59,217.55,0.84480826]
[1734299171437,9.90109024,217.6,217.55,0.84480826]
[1734299171940,15.94816772,217.61,217.55,0.84480826]
[1734299172533,2.2987,217.56,217.55,0.84480826]
[1734299172739,4.5387,217.56,217.55,0.84480826]
[1734299174147,2.2992,217.52,217.49,0.68037]
[1734299174347,2.24,217.51,217.49,0.68037]
[1734299174542,15.94816772,217.53,217.49,0.68037]
[1734299174738,2.299,217.54,217.49,0.68037]
[1734299175247,2.2993,217.51,217.49,0.68037]
[1734299175449,2.24,217.5,217.49,0.68037]
[1734299175949,2.24,217.5,217.41,2.3003]
[1734299175950,2.2997,217.48,217.41,2.3003]
[1734299176154,2.24,217.5,217.4,3.0719]
[1734299176747,2.24,217.5,217.4,8.53436438]
[1734299177057,2.2998,217.46,217.4,9.30716438]
[1734299177256,2.24,217.45,217.35,1.5432]
[1734299177454,2.24,217.44,217.35,1.5432]
[1734299177656,2.24,217.43,217.35,1.5432]
[1734299177952,2.24,217.45,217.36,5.49173448]
[1734299178259,2.24,217.46,217.36,5.49173448]
[1734299178452,2.24,217.45,217.36,5.49173448]
[1734299178653,2.24,217.44,217.36,5.49173448]
[1734299178958,2.3006,217.39,217.33,1.454]
[1734299179152,2.24,217.38,217.33,1.454]
[1734299179854,15.94816772,217.45,217.33,7.00814055]
[1734299180157,2.24,217.44,217.33,7.00814055]
[1734299180951,15.94816772,217.41,217.27,1.4367]
[1734299181156,2.301,217.35,217.28,2.3017]
[1734299181360,2.24,217.34,217.27,6.82914934]
[1734299181554,2.24,217.33,217.27,6.82914934]
[1734299181857,2.24,217.32,217.27,6.82914934]
[1734299182057,2.24,217.31,217.27,1.4367]
[1734299182558,2.24,217.31,217.25,1.5237]
[1734299183060,2.24,217.32,217.26,5.58304406]
[1734299183260,2.24,217.38,217.26,5.58304406]
[1734299183449,2.24,217.39,217.28,15.94816772]
[1734299183651,5.65928195,217.46,217.38,2.3006]
[1734299183652,2.24,217.41,217.38,2.3006]
[1734299184259,2.24,217.44,217.37,2.3007]
[1734299184763,2.24,217.44,217.29,2.24]
[1734299185256,2.24,217.44,217.3,3.08583692]
[1734299185458,2.24,217.44,217.28,15.94816772]
[1734299185652,18.18816772,217.44,217.27,1.5387]
[1734299185854,15.94816772,217.4,217.26,5.58304406]
[1734299186054,2.24,217.39,217.26,5.58304406]
[1734299187858,2.24,217.39,217.27,0.84594967]
[1734299188059,2.24,217.39,217.26,7.82304406]
[1734299188659,2.24,217.39,217.27,0.84594918]
[1734299188953,2.24,217.39,217.28,0.84592735]
[1734299189152,2.24,217.39,217.33,2.3011]
[1734299189557,2.24,217.39,217.27,0.84594918]
[1734299189957,2.24,217.39,217.28,0.84588807]
[1734299190358,2.24,217.39,217.27,0.84594918]
[1734299190854,2.24,217.39,217.28,0.84589107]
[1734299191060,2.24,217.39,217.26,7.82304406]
[1734299191357,2.3005,217.4,217.27,0.84589767]
[1734299191562,2.24,217.39,217.26,7.82304406]
[1734299191761,2.24,217.39,217.28,0.84590367]
[1734299192857,2.3009,217.36,217.28,0.84590367]
[1734299193058,2.24,217.39,217.28,0.84590367]
[1734299193863,2.3007,217.38,217.29,2.3016]
[1734299194061,2.3007,217.38,217.28,0.84590367]
[1734299194062,2.24,217.37,217.28,0.84590367]
[1734299194260,2.24,217.36,217.28,0.84590367]
[1734299195162,18.24816772,217.44,217.35,2.301]
[1734299195364,15.94816772,217.44,217.28,0.84590367]
[1734299195566,2.24,217.43,217.28,0.84590367]
[1734299195762,2.24,217.43,217.32,2.3012]
[1734299196065,2.24,217.43,217.28,0.84590367]
[1734299196262,2.24,217.43,217.29,0.84588959]
[1734299196469,2.3006,217.39,217.29,0.84588959]
[1734299196769,2.26,217.38,217.29,0.84588959]
[1734299196969,4.5607,217.38,217.3,2.3015]
[1734299197964,2.26,217.38,217.31,2.3013]
[1734299198569,2.26,217.38,217.28,0.84590367]
[1734299198771,2.26,217.38,217.32,2.3013]
[1734299199361,2.3006,217.39,217.32,2.3013]
[1734299199673,2.26,217.37,217.31,2.3014]
[1734299199865,2.26,217.37,217.28,0.84590367]
[1734299200971,2.26,217.37,217.26,5.58304406]
[1734299201569,2.3009,217.36,217.26,5.58304406]
[1734299201770,2.26,217.35,217.26,5.58304406]
[1734299202573,15.94816772,217.44,217.26,5.58304406]
[1734299202867,2.26,217.43,217.27,0.84594134]
[1734299203065,2.26,217.43,217.26,5.58304406]
[1734299203275,2.26,217.43,217.27,0.84593126]
[1734299203472,15.94816772,217.44,217.26,5.58304406]
[1734299203672,2.26,217.43,217.26,5.58304406]
[1734299203866,2.26,217.43,217.28,0.84593134]
[1734299204174,2.26,217.42,217.29,0.84593134]
[1734299204570,2.26,217.42,217.26,5.58304406]
[1734299204873,2.26,217.42,217.27,0.84587977]
[1734299205073,2.26,217.42,217.27,3.10587977]
[1734299205267,2.26,217.42,217.27,2.26]